[Event "Israel National League 2024"]
[Site "Israel"]
[Date "2024.03.08"]
[Round "11.8"]
[White "Roiz, Michael"]
[Black "Gorodetzky, David"]
[Result "1/2-1/2"]
[ECO "E06"]
[WhiteElo "2575"]
[BlackElo "2486"]
[Annotator "TA"]
[PlyCount "51"]
[EventDate "2024.01.07"]
[EventType "team-tourn"]
[EventCountry "ISR"]
[SourceTitle "playchess.com"]
[Source "ChessBase"]
[SourceQuality "1"]
[TimeControl "40/5400+30:1800+30"]

{[%evp 11,51,12,12,12,12,17,14,5,17,9,21,0,16,18,28,10,0,0,0,0,0,0,0,0,45,45,106,97,109,116,106,108,136,115,187,166,183,179,164,114,111,120]} 1. d4 {[%emt 0:00:10]} Nf6 {[%emt 0:02:54]} 2. c4 {[%emt 0:00:10]} e6 {[%emt 0:01:05]} 3. g3 {[%emt 0:01:46]} d5 {[%emt 0:00:55]} 4. Bg2 {[%emt 0:00:43]} Be7 {[%emt 0:04:42]} 5. Nf3 {[%emt 0:01:34]} O-O {[%emt 0:02:39]} 6. O-O {[%emt 0:01:43]} a5 {[%emt 0:02:53][%cal Ba7a5,Ba5a4][%mdl 32]} 7. Bf4 {[%emt 0:09:33]} dxc4 {[%emt 0:22:19]} 8. Qa4 {[%emt 0:04:31]} Nd5 {[%emt 0:07:04]} 9. Qxc4 {[%emt 0:00:55] The position is equal.} Nxf4 {[%emt 0:05:17]} 10. gxf4 {[%emt 0:00:05]} a4 {[%emt 0:05:32]} 11. a3 {[%emt 0:06:02]} Ra5 {[%emt 0:02:35]} 12. Qc2 {[%emt 0:06:56]} c5 {[%emt 0:02:12]} 13. dxc5 {[%emt 0:03:15]} Qc7 {[%emt 0:04:04]} 14. e3 {[%emt 0:00:14]} Rxc5 {[%emt 0:11:19]} 15. Qxa4 {[%emt 0:02:05]} Bd7 {[%emt 0:01:11]} 16. Qb3 {[%emt 0:06:13]} Rb5 {[%emt 0:06:42]} 17. Qc3 {[%emt 0:13:20]} Nc6 {[%emt 0:07:11]} 18. Qd2 {[%emt 0:06:15]} Qb6 {[%emt 0:04:29]} 19. b4 $16 {[%emt 0:08:06][%cal Ob1c3,Bb2b4,Bb4b5][%mdl 32]} ({Weaker is} 19. Qxd7 Rd5 $17 (19... Rxb2 $2 {too greedy.} 20. Qd1 $18) (19... Rxb2 $2 20. Qd1 $18)) 19... Rd5 {[%emt 0:01:07]} 20. Qc2 {[%emt 0:00:29]} Rc8 {[%emt 0:01:41][%cal Oc6b4] [#] And now ...Nxb4! would win.} 21. Nc3 {[%emt 0:00:04]} Rh5 {[%emt 0:00:49]} 22. Rac1 {[%emt 0:04:31]} Ra8 {[%emt 0:00:58]} (22... Be8 $16 23. Qe2 Qa7) 23. Rfd1 $18 {[%emt 0:03:46]} Be8 {[%emt 0:00:28]} 24. b5 {[%emt 0:08:30]} Na5 {[%emt 0:00:44]} 25. a4 {[%emt 0:00:02]} ({White should try} 25. Ne5 $18) 25... Rc5 {[%emt 0:00:46]} 26. Qb1 {[%emt 0:12:32] Weighted Error Value: White=0.06 (flawless) /Black=0.13 (very precise) .  Mistake:       	White=1     	Black=2      Inaccurate:     	---       	Black=1      OK:         	White=7     	Black=7      Best:        	White=3     	Black=1} 1/2-1/2

[Event "Israel National League 2024"]
[Site "Israel"]
[Date "2024.03.08"]
[Round "11.9"]
[White "Grinberg, Eyal"]
[Black "Steinberg, Nitzan"]
[Result "1-0"]
[ECO "C66"]
[WhiteElo "2471"]
[BlackElo "2551"]
[Annotator "TA"]
[PlyCount "171"]
[EventDate "2024.01.07"]
[EventType "team-tourn"]
[EventCountry "ISR"]
[SourceTitle "playchess.com"]
[Source "ChessBase"]
[SourceQuality "1"]
[TimeControl "40/5400+30:1800+30"]

{[%evp 12,171,31,29,26,30,22,23,17,17,18,19,23,-7,3,0,-4,-7,-12,-15,-13,-40,-8,-13,-18,-14,-10,-19,-11,-20,-18,-5,-2,-5,-4,-8,-2,-20,-11,-14,-12,-18,-10,-24,-20,-17,-10,-21,-8,-25,-8,-8,-8,-8,0,0,0,0,8,0,0,0,0,0,0,0,0,0,0,0,0,0,0,0,0,0,26,27,86,87,86,84,96,93,95,85,110,95,165,164,164,116,122,129,124,122,129,141,229,229,370,364,354,179,283,185,170,169,185,187,185,186,189,188,185,176,275,273,277,277,277,265,328,341,320,283,285,275,282,285,271,279,359,291,427,422,387,352,316,296,513,503,1273,1464,1075,957,11460,980,29972,1484,29981,29982,29980,29981,29981,29982,29982,29983,29983,29984,29985,29986]} 1. e4 {[%emt 0:12:46]} e5 {[%emt 0:00:17]} 2. Nf3 {[%emt 0:00:06]} Nc6 {[%emt 0:00:05]} 3. Bb5 {[%emt 0:00:05]} Nf6 {[%emt 0:02:03]} 4. d3 {[%emt 0:01:02]} d6 {[%emt 0:00:23]} 5. c3 {[%emt 0:00:08]} g6 {[%emt 0:02:18]} 6. O-O {[%emt 0:00:22]} Bg7 {[%emt 0:00:13]} 7. Re1 {[%emt 0:03:19]} O-O {[%emt 0:01:42]} 8. h3 {[%emt 0:00:36]} Re8 {[%emt 0:06:44]} 9. Nbd2 {[%emt 0:00:25]} a6 {[%emt 0:05:35] Weiß hat minimalen Vorteil.} 10. Ba4 {[%emt 0:00:20]} b5 {[%emt 0:00:45]} 11. Bc2 {[%emt 0:01:31]} Rb8 {[%emt 0:03:38]} 12. d4 {[%emt 0:08:57]} exd4 {[%emt 0:10:56]} 13. cxd4 {[%emt 0:00:33]} Nb4 {[%emt 0:00:49]} 14. Bb1 {[%emt 0:00:09]} c5 {[%emt 0:00:20]} 15. d5 {[%emt 0:09:20]} a5 {[%emt 0:00:58]} 16. Nf1 {[%emt 0:00:59]} a4 {[%emt 0:07:00][%cal Oa4a3]} 17. Ng3 {[%emt 0:00:54]} Nd7 {[%emt 0:02:52] Droht ...a3.} 18. a3 {[%emt 0:04:02]} Na6 {[%emt 0:00:20]} 19. Bc2 {[%emt 0:03:47]} Ne5 {[%emt 0:07:53]} 20. Rb1 {[%emt 0:03:48]} c4 {[%emt 0:02:46]} 21. Nxe5 {[%emt 0:02:21]} dxe5 {[%emt 0:00:37]} 22. Bd2 {[%emt 0:01:54]} Bd7 {[%emt 0:03:30]} 23. Bc3 {[%emt 0:03:09]} Nc5 {[%emt 0:04:02]} 24. Qd2 {[%emt 0:03:36]} Qh4 {[%emt 0:03:40]} 25. Qe3 {[%emt 0:04:24]} Rbc8 {[%emt 0:02:59]} 26. Rbd1 {[%emt 0:00:58]} Bh6 {[%emt 0:01:40]} 27. Qf3 {[%emt 0:01:06]} Bf8 {[%emt 0:00:30]} 28. Qe2 {[%emt 0:10:02]} Bd6 {[%emt 0:00:17]} 29. Qd2 {[%emt 0:03:18]} Rf8 {[%emt 0:01:11]} 30. Re2 {[%emt 0:00:52]} Rce8 {[%emt 0:01:32]} 31. Rde1 {[%emt 0:00:27]} Kh8 {[%emt 0:06:39]} 32. Nf1 {[%emt 0:02:16]} Qe7 {[%emt 0:04:45]} 33. f4 {[%emt 0:02:18]} f6 {[%emt 0:00:05]} 34. Nh2 {[%emt 0:01:09]} Qg7 {[%emt 0:04:15]} (34... exf4 $2 35. e5 Nb3 (35... Bxe5 $2 36. Rxe5 Qd6 37. Rxe8 $18) 36. exd6 Qxd6 37. Bxb3 Rxe2 38. Rxe2 $18 (38. Qxe2 Qc5+ 39. Kh1 Re8 $18)) 35. Nf3 {[%emt 0:02:08]} Kg8 {[%emt 0:01:01]} 36. fxe5 {[%emt 0:04:12]} fxe5 {[%emt 0:00:04][%cal Od7h3]} 37. Rf1 {[%emt 0:00:11]} h6 {[%emt 0:01:25]} 38. Ref2 {[%emt 0:03:18]} g5 {[%emt 0:01:48]} 39. Nh2 {[%emt 0:05:58]} Rxf2 {[%emt 0:05:25]} 40. Qxf2 {[%emt 0:01:32]} Rf8 {[%emt 0:01:07]} 41. Qg3 {[%emt 0:03:53]} Rxf1+ {[%emt 0:08:38]} 42. Kxf1 {[%emt 0:04:39]} Be8 {[%emt 0:00:36]} 43. Nf3 {[%emt 0:02:03][%cal Bh2f3,Bf3h4,Bh4f5][%mdl 32]} Nd7 {[%emt 0:00:39]} 44. Qg4 {[%emt 0:00:56] Qe6+ ist eine echte Drohung.} Kf8 {[%emt 0:07:16]} (44... Qg6 $11) 45. h4 $1 $16 {[%emt 0:04:34]} gxh4 {[%emt 0:00:06]} 46. Qe6 {[%emt 0:02:56]} Qg6 {[%emt 0:00:39]} 47. Nxh4 {[%emt 0:01:09] Weiß hat aktiveres Spiel.} (47. Bxe5 $2 Qxe6 $19) 47... Qxe6 {[%emt 0:06:26]} 48. dxe6 {[%emt 0:00:21]} Nf6 {[%emt 0:00:33]} 49. Nf5 {[%emt 0:00:35][%csl LRd6,LRh6]} Bc5 {[%emt 0:00:00]} (49... Bb8 $16) 50. Bxe5 $18 {[%emt 0:01:45]} (50. Nxh6 Ke7 $11) 50... Ng4 {[%emt 0:00:01]} 51. Bf4 {[%emt 0:02:47]} (51. Bg7+ $18 Kg8 52. Bc3 (52. Nxh6+ $2 Kxg7 53. Nxg4 Bd4 $19) (52. Bxh6 Nxh6 53. Nxh6+ Kg7 $11)) 51... c3 $16 {[%emt 0:01:03]} 52. bxc3 {[%emt 0:01:13] Und jetzt Bd1 wäre schön.} (52. Nxh6 $6 Nxh6 53. Bxh6+ Ke7 $11) 52... Bxa3 {[%emt 0:00:07]} 53. Ke2 {[%emt 0:05:12]} (53. Bxh6+ $6 Nxh6 54. Nxh6 Bb2 $11) 53... Bc5 {[%emt 0:00:15]} 54. Kf3 $1 {[%emt 0:01:08]} (54. Nxh6 $6 Nxh6 55. Bxh6+ Ke7 $11) 54... Bh5 {[%emt 0:01:16]} (54... h5 $16) 55. Kg3 $1 $18 {[%emt 0:00:51][%cal Og3h4] Kh4! wäre nun fies.} Bf2+ {[%emt 0:02:58] [#]} (55... a3 $142 56. Bb3 (56. Bxh6+ $2 Nxh6 57. Bb1 Nxf5+ 58. exf5 Ke7 $19) 56... Nf2) 56. Kh3 $1 {[%emt 0:01:24]} Be1 {[%emt 0:00:00]} 57. e7+ {[%emt 0:01:25]} (57. Bxh6+ Nxh6 58. Nxh6 Bxc3 $19) (57. Bd6+ Kg8 58. e5 Kh8 $18) (57. g3 $142 Nf6 (57... Bxc3 $2 58. Kh4 $18) 58. Bd6+ (58. Nxh6 Ke7 $18) (58. Bxh6+ Kg8 $18) 58... Kg8 59. Nxh6+ Kh8 60. g4) 57... Kf7 {[%emt 0:04:00]} (57... Ke8 $142) 58. e8=Q+ {[%emt 0:00:49]} (58. Bxh6 $2 Nxh6 (58... Bxc3 59. Kh4 $18) 59. Nd6+ Kxe7 60. Nxb5 Nf7 $19 (60... Bg4+ $2 61. Kh2 $19)) 58... Kxe8 {[%emt 0:00:03]} 59. Ng7+ {[%emt 0:00:05]} (59. Bxh6 a3 (59... Bxc3 60. Nd6+ Kd7 61. Nxb5 $11) 60. Bb3 Nf2+ (60... Bxc3 61. Nd6+ Ke7 62. Nxb5 $11) (60... Nxh6 61. Ng7+ Kf8 62. Nxh5 $17) 61. Kh2 Bd1 $17 (61... Bxc3 62. Nd6+ Kd7 63. Nxb5 $11) (61... Ng4+ 62. Kg1 $17)) 59... Kd8 {[%emt 0:00:05][%cal Oa4a3] Weiss muss nun ...a3! beachten.} 60. Nxh5 {[%emt 0:00:05]} Nf2+ {[%emt 0:00:00] [#]} 61. Kh2 $1 {[%emt 0:00:55]} Ng4+ {[%emt 0:01:31]} 62. Kg1 {[%emt 0:01:13][%cal Oc3c4]} Bxc3 {[%emt 0:00:02]} 63. Kf1 {[%emt 0:00:38]} Be5 {[%emt 0:01:46]} (63... Kd7 $142 64. Bd1 a3) 64. Bd2 {[%emt 0:00:52]} Kc7 {[%emt 0:02:49]} 65. Ke2 {[%emt 0:00:41]} Kb6 {[%emt 0:00:31]} 66. Nf4 {[%emt 0:00:33]} Bd4 {[%emt 0:02:41]} 67. Nd5+ {[%emt 0:01:02]} Kc6 {[%emt 0:00:18]} 68. Bb4 {[%emt 0:00:52]} Ne5 {[%emt 0:00:31]} 69. Kd2 {[%emt 0:00:29]} Nc4+ {[%emt 0:01:13]} 70. Kc1 {[%emt 0:00:23]} Bb2+ {[%emt 0:01:38]} 71. Kb1 {[%emt 0:00:06] Droht stark Bd3.} Bd4 {[%emt 0:01:00]} 72. Bd1 {[%emt 0:00:28]} Kd7 {[%emt 0:00:46]} (72... Bc5 $142 73. Bc3 Bf8) 73. Bg4+ {[%emt 0:00:43]} Kc6 {[%emt 0:00:01]} 74. Bh5 {[%emt 0:00:30]} Kd7 {[%emt 0:00:01] Verhindert Be8+.} 75. Be2 {[%emt 0:01:00] Zielt auf Nc3 ab.} Kc6 $2 {[%emt 0:00:46]} (75... Nd6 {war einen Versuch wert.} 76. Bd3 (76. Bg4+ Kc6 $18) 76... h5) 76. Kc2 {[%emt 0:00:26]} Ne3+ {[%emt 0:01:25]} (76... Ne5 $142 77. Nc3 Bxc3 78. Kxc3 (78. Bxc3 Nf7 $18) 78... Kb6) 77. Nxe3 {[%emt 0:00:36]} Bxe3 {[%emt 0:00:03]} 78. Bh5 {[%emt 0:00:16]} Bc5 {[%emt 0:00:24]} 79. Kc3 {[%emt 0:00:51]} (79. Be8+ $142 Kb6 80. Bxc5+ Kxc5 81. Kd3) 79... a3 {[%emt 0:00:57]} 80. Bf7 {[%emt 0:00:30]} (80. Be8+ $142 Kb6 81. Bf7 Bf2 82. Bxa3 Be1+ 83. Kd3 Kc7 84. e5 Bh4 85. Be8) 80... h5 {[%emt 0:00:01]} 81. Bxc5 {[%emt 0:00:37] Weiß setzt Matt.} (81. Bxh5 Bxb4+ 82. Kb3 (82. Kxb4 $2 a2 $19) 82... Kd7 $11) 81... Kxc5 {[%emt 0:00:01]} 82. Bxh5 {[%emt 0:00:16]} b4+ {[%emt 0:00:16]} 83. Kb3 {[%emt 0:00:09]} Kd4 {[%emt 0:00:01]} 84. Bg6 {[%emt 0:00:17]} (84. Kxb4 a2 (84... Kxe4 85. Kxa3 Kf5 86. g4+ Kg5 87. Kb3 Kf6 88. Kc4 Ke6 89. g5) 85. Be8 a1=Q (85... a1=B 86. Bg6 $11) 86. Kb5 Qb1+ (86... Kxe4 87. Bd7 Kd5 88. Bc6+ Kd6 89. Be8 Qe5+ 90. Kc4 Qxe8 91. Kd4 Qe5+ 92. Kc4 Qe4+ 93. Kc3 Kc5 94. Kb3 Qe3+ 95. Kc2 Kc4 96. g4 Qc3+ 97. Kd1 Kd3 98. g5 Qd2#) 87. Kc6 Qxe4+ 88. Kd7 Qd5+ (88... Qxg2 89. Ke6 Qd5+ 90. Ke7 Ke5 91. Bd7 Qd6+ 92. Kf7 Qxd7+ 93. Kg6 Qe8+ 94. Kg7 Kf5 95. Kh7 Kf6 96. Kh6 Qh8#) 89. Ke7 Ke5 (89... Qxg2 90. Kf6 Qf3+ 91. Ke6 Qd5+ 92. Ke7 Ke5 93. Bd7 Qb7 94. Ke8 Kf6 95. Kd8 Qb6+ 96. Kc8 Ke7 97. Bf5 Kd6 98. Bh7 Qc7#) 90. g4 Qe6+ (90... Qd6+ 91. Kf7 Qe6+ 92. Kf8 Qxg4 93. Kf7 Qe6+ 94. Kg7 Qxe8 95. Kh6 Kf6 96. Kh7 Qg6+ 97. Kh8 Qg7#) 91. Kf8 Qxg4 92. Kf7 Qe6+ 93. Kg7 Qxe8 94. Kh6 Kf6 95. Kh7 Qg6+ 96. Kh8 Qg7#) 84... Ke5 {[%emt 0:00:35]} 85. Bf5 {[%emt 0:00:13]} (85. Kxb4 a2 86. Bf7 a1=Q (86... a1=B 87. Bg6 $11) 87. Kb5 Qb1+ (87... Kxe4 88. Bg6+ Kd4 89. g4 Qf1+ 90. Kb6 Qf6+ 91. Kc7 Qxg6 92. Kd7 Kc5 93. Ke7 Kd5 94. Kd8 Qg7 95. Ke8 Kd6 96. Kd8 Qh8#) 88. Kc5 Qxe4 89. Bg8 Qxg2 90. Bb3 Qg4 91. Ba2 Qd4+ 92. Kb5 Qb2+ 93. Kc4 Qxa2+ 94. Kd3 Qb3+ 95. Ke2 Ke4 96. Kf2 Kf4 97. Kf1 Qc2 98. Ke1 Kg3 99. Kf1 Qf2#) 85... Kf4 {[%emt 0:00:05]} 86. g4 {[%emt 0:00:10] Gewichteter Fehlerwert: Weiß=0.11 (sehr präzise) /Schwarz=0.14 (sehr präzise) .  Fehler:       	Weiß=2     	Schwarz=9     Ungenau:       	Weiß=3     	Schwarz=2     OK:         	Weiß=26    	Schwarz=35    Bester:       	Weiß=5     	Schwarz=2     Stark:        	Weiß=4     	---} (86. Kxb4 a2 87. Be6 (87. g3+ $2 Ke5 $19) 87... a1=Q $19 (87... a1=B 88. Bf5 $11)) 1-0

[Event "Israel National League 2024"]
[Site "Israel"]
[Date "2024.03.08"]
[Round "11.10"]
[White "Mikhalevski, Victor"]
[Black "Mesropov, Konstantin"]
[Result "0-1"]
[ECO "A20"]
[WhiteElo "2524"]
[BlackElo "2440"]
[Annotator "TA"]
[PlyCount "128"]
[EventDate "2024.01.07"]
[EventType "team-tourn"]
[EventCountry "ISR"]
[SourceTitle "playchess.com"]
[Source "ChessBase"]
[SourceQuality "1"]
[TimeControl "40/5400+30:1800+30"]

{[%evp 51,128,0,15,19,122,124,150,-206,-205,-215,-206,-220,-230,-225,-223,-211,-208,-223,-240,-220,-222,-214,-183,-268,-264,-254,-264,-262,-265,-318,-304,-314,-314,-309,-279,-345,-302,-290,-297,-366,-362,-373,-324,-347,-335,-354,-355,-363,-364,-529,-386,-370,-352,-358,-350,-515,-497,-535,-536,-515,-497,-4922,-1715,-29978,-29979,-29979,-606,-588,-584,-677,-677,-29982,-29983,-29989,-29987,-29990,-29991,-29991,-29986]} 1. c4 {[%emt 0:00:02]} e5 {[%emt 0:01:32]} 2. g3 {[%emt 0:00:14]} Nf6 {[%emt 0:00:19]} 3. Bg2 {[%emt 0:00:07]} c6 {[%emt 0:00:14]} 4. Nf3 {[%emt 0:01:27]} e4 {[%emt 0:04:58]} 5. Nd4 {[%emt 0:00:59]} Qb6 {[%emt 0:03:09]} 6. Nb3 {[%emt 0:02:48] A20: English Opening: 1...e5.} a5 {[%emt 0:00:47]} 7. d3 {[%emt 0:00:49]} a4 {[%emt 0:00:29]} 8. N3d2 {[%emt 0:00:35]} Bc5 {[%emt 0:02:56]} 9. O-O {[%emt 0:20:59]} e3 {[%emt 0:01:21]} 10. fxe3 {[%emt 0:02:15]} Bxe3+ {[%emt 0:00:22]} 11. Kh1 {[%emt 0:00:03]} Ng4 {[%emt 0:00:54]} 12. Ne4 {[%emt 0:04:42]} O-O {[%emt 0:01:43]} 13. Nbc3 {[%emt 0:18:27]} d5 {[%emt 0:03:23]} 14. cxd5 {[%emt 0:04:30]} Bxc1 {[%emt 0:00:46]} 15. Qxc1 {[%emt 0:00:43]} Ne3 {[%emt 0:00:26]} 16. dxc6 {[%emt 0:06:43]} Nxc6 {[%emt 0:15:51]} 17. Rf4 {[%emt 0:11:11]} f5 $146 {[%emt 0:38:43]} ({Predecessor:} 17... Nxg2 18. Kxg2 Rd8 19. Ng5 f6 20. Nf3 Re8 21. Qd2 a3 22. Rb1 axb2 23. Rxb2 Qd8 {0-1 Brunello,S (2510)-Baenziger,F (2408) Mitropa Cup Apolda 2024 (6.6)}) 18. Ng5 {[%emt 0:06:59]} Nxg2 {[%emt 0:00:40]} 19. Kxg2 {[%emt 0:00:06]} Ne5 {[%emt 0:08:33]} 20. Nxa4 {[%emt 0:05:46]} Qf6 {[%emt 0:03:07]} 21. Ne4 {[%emt 0:01:58]} Qd8 {[%emt 0:02:37]} 22. Nf2 {[%emt 0:02:16]} Ng6 {[%emt 0:01:48]} 23. Qc4+ {[%emt 0:01:12]} Kh8 {[%emt 0:00:07]} 24. Rd4 {[%emt 0:00:03]} Qe8 {[%emt 0:03:03]} 25. Nc3 {[%emt 0:02:19]} Bd7 {[%emt 0:01:03]} 26. Rf1 {[%emt 0:03:08]} Bc6+ {[%emt 0:00:55]} 27. Kg1 {[%emt 0:00:20]} Qe3 {[%emt 0:02:11]} (27... Rc8 $11) 28. Rd6 $16 {[%emt 0:00:30]} Ne5 {[%emt 0:01:50]} 29. Qd4 $2 {[%emt 0:00:55] [#]} (29. Qf4 $1 $16 {[%cal Rf4e3] is forced if you want to stay better.} Ng4 30. b4) 29... Qxe2 $1 $19 {[%emt 0:00:17]} 30. Nxe2 {[%emt 0:02:49]} Nf3+ {[%emt 0:00:02]} 31. Kg2 {[%emt 0:00:03]} Nxd4+ {[%emt 0:00:31]} 32. Rxc6 {[%emt 0:00:13]} Nxc6 {[%emt 0:00:07]} 33. Nc3 {[%emt 0:00:48]} Rad8 {[%emt 0:00:22]} 34. Rd1 {[%emt 0:00:54]} Rf7 {[%emt 0:00:22]} 35. a3 {[%emt 0:00:10]} Rfd7 {[%emt 0:00:09]} 36. Re1 {[%emt 0:00:09]} Re7 {[%emt 0:00:15]} 37. Rd1 {[%emt 0:00:21]} (37. Rxe7 $142 Nxe7 38. Kf3) 37... Kg8 $19 {[%emt 0:00:15]} 38. h4 {[%emt 0:00:36]} Ne5 {[%emt 0:01:19]} 39. Re1 {[%emt 0:00:54]} Kf8 {[%emt 0:00:19]} 40. Rf1 {[%emt 0:00:37]} Rf7 {[%emt 0:01:46]} (40... Nxd3 $2 41. Nxd3 Rxd3 42. Rxf5+ Kg8 43. Rb5 $19) 41. Rd1 {[%emt 0:08:49]} Rfd7 {[%emt 0:01:42]} 42. Rf1 {[%emt 0:00:15]} Kg8 {[%emt 0:00:56]} (42... Nxd3 43. Nxd3 Rxd3 44. Rxf5+ Ke8 45. Rb5 $19) 43. Na4 {[%emt 0:04:01]} Rd5 {[%emt 0:09:42]} 44. Nc3 {[%emt 0:02:19]} R5d6 {[%emt 0:00:48]} 45. Na4 {[%emt 0:05:41]} Rc6 {[%emt 0:07:42]} (45... Nxd3 46. Nxd3 Rxd3 47. Rxf5) 46. Nc3 {[%emt 0:06:03]} f4 {[%emt 0:03:30]} (46... Nxd3 47. Nxd3 (47. Rd1 $2 Rcd6 $19) 47... Rxd3 48. Rxf5 $17) 47. gxf4 {[%emt 0:02:25]} Rg6+ {[%emt 0:00:10]} ({Don't do} 47... Nxd3 48. Nfe4) 48. Kh3 {[%emt 0:00:34]} Nxd3 {[%emt 0:00:38]} 49. Nfe4 {[%emt 0:00:07]} Nxb2 {[%emt 0:01:01]} 50. f5 {[%emt 0:00:13]} (50. Ng3 $142) 50... Rc6 {[%emt 0:00:25]} 51. Rb1 {[%emt 0:02:47]} Nc4 {[%emt 0:02:11]} 52. Rxb7 {[%emt 0:00:21]} Nd6 {[%emt 0:00:41]} (52... Nxa3 $2 53. Kg4 $19) 53. Re7 {[%emt 0:02:00]} (53. Rb4 $142) 53... Nxf5 $19 {[%emt 0:00:26]} 54. Re5 {[%emt 0:00:02]} Rd3+ {[%emt 0:01:59]} 55. Kg4 {[%emt 0:01:30]} Nh6+ {[%emt 0:01:03]} 56. Kh5 {[%emt 0:01:11]} (56. Kf4 $142) 56... Rdxc3 {[%emt 0:00:41]} (56... Rcxc3 $142 57. Nxc3 Rxc3) 57. Nxc3 {[%emt 0:00:08]} Rxc3 {[%emt 0:00:10]} 58. Ra5 {[%emt 0:00:02] [#]} Nf5 {[%emt 0:02:00]} (58... Rc4 $142 $1 {[%mdl 512]} 59. Ra8+ (59. Kg5 Rg4+) 59... Kf7 60. Ra7+ Kf6 61. Ra6+ Kf5 62. Ra5+ Kf4 63. Rg5 Nf7 (63... Rc7 {gets mated.} 64. Rb5 Rc4 65. Rg5 Nf7 66. Rg4+ Kf3 67. Rxg7 Rc5+ 68. Rg5 Nxg5 69. hxg5 Kf4 70. Kh6 Rxg5 71. a4 Kf5 72. a5 Kf6 73. a6 Ra5 74. Kxh7 Rxa6 75. Kh6 Ra4 76. Kh5 Rf4 77. Kh6 Rh4#) 64. Rg4+ Kf3 65. Rxg7 Rc5+ 66. Rg5 Nxg5 67. hxg5 Kf4 68. Kh6 Rxg5 69. a4 Kf5 (69... Ra5 {leads to mate.} 70. Kg7 Kf5 71. Kf7 Rxa4 72. Ke7 Rd4 73. Kf7 Re4 74. Kg7 Ke6 75. Kxh7 Kf6 76. Kg8 Rh4 77. Kf8 Rh8#) 70. a5 Kf6 71. a6 Ra5 72. Kxh7 Rxa6 73. Kg8 Ra8+ 74. Kh7 Rf8 75. Kh6 Rh8#) 59. Kg5 $19 {[%emt 0:00:10]} Ne7 {[%emt 0:00:14]} 60. Ra7 {[%emt 0:00:12]} Kf7 {[%emt 0:00:16]} 61. a4 {[%emt 0:00:09]} Rc4 {[%emt 0:01:01]} 62. a5 {[%emt 0:00:12]} h6+ {[%emt 0:01:06]} 63. Kh5 {[%emt 0:00:05]} Kf6 {[%emt 0:00:16]} 64. Ra6+ {[%emt 0:00:06]} Nc6 {[%emt 0:00:14]} 0-1

[Event "Israel National League 2024"]
[Site "Israel"]
[Date "2024.03.08"]
[Round "11.11"]
[White "Shohat, Yotam"]
[Black "Kobo, Ori"]
[Result "1/2-1/2"]
[ECO "C60"]
[WhiteElo "2328"]
[BlackElo "2541"]
[Annotator "TA"]
[PlyCount "38"]
[EventDate "2024.01.07"]
[EventType "team-tourn"]
[EventCountry "ISR"]
[SourceTitle "playchess.com"]
[Source "ChessBase"]
[SourceQuality "1"]
[TimeControl "40/5400+30:1800+30"]

{[%evp 18,38,28,22,34,28,21,28,32,0,0,12,32,12,31,3,22,21,17,0,0,0,25]} 1. e4 {[%emt 0:00:15]} e5 {[%emt 0:00:26]} 2. Nf3 {[%emt 0:00:06]} Nc6 {[%emt 0:00:33]} 3. Bb5 {[%emt 0:00:33]} a6 {[%emt 0:00:22]} 4. Ba4 {[%emt 0:00:04]} d6 {[%emt 0:00:58]} 5. c3 {[%emt 0:01:11]} Bd7 {[%emt 0:00:56]} 6. d4 {[%emt 0:00:07]} Nf6 {[%emt 0:01:01]} 7. O-O {[%emt 0:01:47]} g6 {[%emt 0:01:21]} 8. Re1 {[%emt 0:02:28]} Bg7 {[%emt 0:00:27]} 9. h3 {[%emt 0:00:10]} O-O {[%emt 0:00:33]} 10. Nbd2 {[%emt 0:04:53]} exd4 {[%emt 0:02:03]} 11. cxd4 {[%emt 0:06:50]} Nb4 {[%emt 0:00:10]} 12. Bxd7 {[%emt 0:14:53]} Qxd7 {[%emt 0:00:06] White has an edge.} 13. Nb1 {[%emt 0:01:24]} c5 {[%emt 0:08:14]} 14. Nc3 {[%emt 0:15:24]} (14. a3 $5 Nc6 $8 15. d5 $14) 14... cxd4 {[%emt 0:19:30]} 15. Nxd4 {[%emt 0:00:25]} Rfe8 {[%emt 0:02:53]} 16. Bf4 {[%emt 0:02:52]} Nh5 {[%emt 0:09:46] The position is equal.} 17. Be3 {[%emt 0:00:09]} Nf6 {[%emt 0:00:17]} 18. Bf4 {[%emt 0:00:07]} Nh5 {[%emt 0:00:26]} 19. Be3 {[%emt 0:00:07]} Nf6 {[%emt 0:00:05] An uneventful encounter.   Weighted Error Value: White=0.08 (flawless) /Black=0.05 (flawless) .  Inaccurate:     	White=2     	---        OK:         	White=2     	Black=5      Best:        	---       	Black=1} 1/2-1/2